[Event "28th Bosnjaci Open 2024"]
[Site "Bosnjaci"]
[Date "2024.01.06"]
[Round "6.13"]
[White "Jelecevic, Ivo"]
[Black "Rosic, Slavko S"]
[Result "0-1"]
[ECO "B30"]
[WhiteElo "2049"]
[BlackElo "2231"]
[Annotator "RC"]
[PlyCount "82"]
[EventDate "2024.01.02"]
[EventType "swiss"]
[EventCountry "CRO"]
[SourceTitle "playchess.com"]
[Source "ChessBase"]
[SourceQuality "1"]
[TimeControl "5400+30"]

1. e4 {[%emt 0:01:02]} c5 {[%emt 0:00:19]} 2. Nf3 {[%emt 0:00:10]} Nc6 {[%emt 0:00:15]} 3. Bb5 {[%emt 0:01:24]} e6 {[%emt 0:00:06]} 4. Nc3 {[%emt 0:01:59]} Nge7 {[%emt 0:00:20]} 5. d4 {[%emt 0:00:28]} cxd4 {[%emt 0:00:05]} 6. Nxd4 {[%emt 0:00:05]} a6 {[%emt 0:00:25]} 7. Nxc6 {[%emt 0:00:36]} bxc6 {[%emt 0:00:27]} 8. Bd3 {[%emt 0:00:08]} Ng6 {[%emt 0:01:22]} 9. O-O {[%emt 0:01:12]} e5 {[%emt 0:01:00]} 10. g3 {[%emt 0:01:18]} Bc5 {[%emt 0:05:30]} 11. Qe2 {[%emt 0:03:53]} d6 {[%emt 0:01:00]} 12. Be3 {[%emt 0:00:56]} Bxe3 {[%emt 0:01:28]} 13. Qxe3 {[%emt 0:01:36]} Bh3 {[%emt 0:00:42]} 14. Rfe1 {[%emt 0:00:40]} O-O {[%emt 0:02:40]} 15. Rad1 {[%emt 0:02:30]} Qf6 {[%emt 0:00:26]} 16. Bf1 {[%emt 0:01:10]} Bxf1 {[%emt 0:02:12]} 17. Rxf1 {[%emt 0:00:50]} Qe6 {[%emt 0:00:06]} 18. b3 {[%emt 0:02:15]} f5 {[%emt 0:00:49]} 19. exf5 {[%emt 0:00:12]} Rxf5 {[%emt 0:00:01]} 20. Qb6 {[%emt 0:01:51]} Ne7 {[%emt 0:02:42]} 21. Qb7 {[%emt 0:04:29]} Raf8 {[%emt 0:00:08]} 22. Qxa6 {[%emt 0:00:27]} d5 {[%emt 0:01:50]} 23. Qe2 {[%emt 0:02:34]} Ng6 {[%emt 0:03:06]} 24. Na4 {[%emt 0:07:29]} Rf3 {[%emt 0:02:17]} 25. Rd3 {[%emt 0:07:20]} R3f6 {[%emt 0:02:56]} 26. Re3 {[%emt 0:09:59]} Qh3 {[%emt 0:02:53]} 27. f3 {[%emt 0:04:37]} e4 {[%emt 0:00:20]} 28. f4 {[%emt 0:00:12]} Ne5 {[%emt 0:00:34]} 29. Qg2 {[%emt 0:01:14]} Qf5 {[%emt 0:01:05]} 30. Nc5 {[%emt 0:02:15]} Nf3+ {[%emt 0:08:28]} 31. Rexf3 {[%emt 0:03:08]} exf3 {[%emt 0:01:15]} 32. Rxf3 {[%emt 0:01:39]} h5 {[%emt 0:01:58]} 33. Re3 {[%emt 0:01:08]} d4 {[%emt 0:00:29]} 34. Re5 {[%emt 0:00:20]} Qg4 {[%emt 0:04:21]} 35. Qe2 {[%emt 0:00:49]} Rxf4 {[%emt 0:00:05]} 36. Qxg4 {[%emt 0:00:49]} Rf1+ {[%emt 0:00:07]} 37. Kg2 {[%emt 0:00:16]} R1f2+ {[%emt 0:00:11]} 38. Kh3 {[%emt 0:00:18]} hxg4+ {[%emt 0:00:01]} 39. Kxg4 {[%emt 0:00:01]} Rxc2 {[%emt 0:01:11]} 40. Ne6 {[%emt 0:00:19]} d3 {[%emt 0:01:02]} 41. Re3 {[%emt 0:01:30]} Re2 {[%emt 0:00:21]} 0-1

[Event "28th Bosnjaci Open 2024"]
[Site "Bosnjaci"]
[Date "2024.01.06"]
[Round "6.14"]
[White "Ljikar, Zoran"]
[Black "Vranjic, Marko"]
[Result "1-0"]
[ECO "B23"]
[WhiteElo "2200"]
[BlackElo "1871"]
[Annotator "ChessBase"]
[PlyCount "49"]
[EventDate "2024.01.02"]
[EventType "swiss"]
[EventCountry "CRO"]
[SourceTitle "playchess.com"]
[Source "ChessBase"]
[SourceQuality "1"]
[TimeControl "5400+30"]

1. e4 {[%emt 0:00:04]} c5 {[%emt 0:00:16]} 2. Nc3 {[%emt 0:00:28]} d6 {[%emt 0:00:30]} 3. g3 {[%emt 0:00:18]} g6 {[%emt 0:02:39]} 4. Bg2 {[%emt 0:00:06]} Bg7 {[%emt 0:00:36]} 5. d3 {[%emt 0:00:07]} e6 {[%emt 0:01:47]} 6. Be3 {[%emt 0:00:08]} Ne7 {[%emt 0:01:14]} 7. Qd2 {[%emt 0:00:15]} h6 {[%emt 0:09:59]} 8. d4 {[%emt 0:04:43]} c4 {[%emt 0:13:45]} 9. Nge2 {[%emt 0:07:05]} Nd7 {[%emt 0:05:29]} 10. O-O {[%emt 0:02:00]} Nf6 {[%emt 0:07:47]} 11. Nb5 {[%emt 0:12:12]} Ng4 {[%emt 0:11:24]} 12. Qb4 {[%emt 0:00:58]} d5 {[%emt 0:10:25]} 13. Bf4 {[%emt 0:02:13]} O-O {[%emt 0:01:02]} 14. Bd6 {[%emt 0:06:50]} Nc6 {[%emt 0:04:37]} 15. Qd2 {[%emt 0:00:27]} a6 {[%emt 0:04:13]} 16. Bxf8 {[%emt 0:00:37]} Bxf8 {[%emt 0:00:10]} 17. Nbc3 {[%emt 0:00:19]} Ne7 {[%emt 0:01:51]} 18. b3 {[%emt 0:04:28]} b5 {[%emt 0:03:35]} 19. bxc4 {[%emt 0:00:54]} bxc4 {[%emt 0:00:24]} 20. Rab1 {[%emt 0:01:28]} Ra7 {[%emt 0:01:05]} 21. Qf4 {[%emt 0:08:34]} h5 {[%emt 0:04:25]} 22. h3 {[%emt 0:01:47]} e5 {[%emt 0:04:54]} 23. Qd2 {[%emt 0:00:53]} exd4 {[%emt 0:02:23]} 24. Qxd4 {[%emt 0:00:27]} Nc6 {[%emt 0:00:37]} 25. Qxd5 {[%emt 0:00:07]} 1-0

[Event "28th Bosnjaci Open 2024"]
[Site "Bosnjaci"]
[Date "2024.01.06"]
[Round "6.15"]
[White "Konjevic, Nikola"]
[Black "Goric, Esad"]
[Result "1/2-1/2"]
[ECO "B01"]
[WhiteElo "2035"]
[BlackElo "2196"]
[Annotator "ChessBase"]
[PlyCount "107"]
[EventDate "2024.01.02"]
[EventType "swiss"]
[EventCountry "CRO"]
[TimeControl "5400+30"]

1. e4 {[%emt 0:00:05]} d5 {[%emt 0:04:15]} 2. exd5 {[%emt 0:00:10]} Qxd5 {[%emt 0:00:02]} 3. Nc3 {[%emt 0:00:09]} Qd6 {[%emt 0:00:05]} 4. d4 {[%emt 0:00:04]} a6 {[%emt 0:00:06]} 5. g3 {[%emt 0:01:21]} Nf6 {[%emt 0:01:20]} 6. Bg2 {[%emt 0:00:12]} e6 {[%emt 0:00:41]} 7. Nf3 {[%emt 0:02:11]} Be7 {[%emt 0:00:09]} 8. Bf4 {[%emt 0:01:42]} Qd8 {[%emt 0:00:22]} 9. O-O {[%emt 0:03:11]} O-O {[%emt 0:00:03]} 10. Na4 {[%emt 0:08:24]} Bd7 {[%emt 0:00:47]} 11. c4 {[%emt 0:00:05]} Bc6 {[%emt 0:04:06]} 12. Nc3 {[%emt 0:02:56]} b5 {[%emt 0:04:27]} 13. Qb3 {[%emt 0:12:23]} bxc4 {[%emt 0:03:13]} 14. Qxc4 {[%emt 0:00:13]} Bd6 {[%emt 0:00:32]} 15. Bg5 {[%emt 0:07:41]} h6 {[%emt 0:02:43]} 16. Bxf6 {[%emt 0:09:04]} Qxf6 {[%emt 0:01:11]} 17. d5 {[%emt 0:01:11]} exd5 {[%emt 0:04:27]} 18. Nxd5 {[%emt 0:00:32]} Bxd5 {[%emt 0:01:03]} 19. Qxd5 {[%emt 0:00:06]} Nd7 {[%emt 0:00:07]} 20. b3 {[%emt 0:08:10]} Nb6 {[%emt 0:02:04]} 21. Qa5 {[%emt 0:01:24]} Rfe8 {[%emt 0:01:48]} 22. Rfe1 {[%emt 0:03:23]} Re7 {[%emt 0:05:41]} 23. Rxe7 {[%emt 0:04:33]} Bxe7 {[%emt 0:01:08]} 24. Re1 {[%emt 0:00:30]} Bd6 {[%emt 0:07:59]} 25. Nd4 {[%emt 0:04:59]} Rf8 {[%emt 0:00:52]} 26. Nf5 {[%emt 0:01:46]} Nd7 {[%emt 0:01:53]} 27. Nxd6 {[%emt 0:04:03]} Qxd6 {[%emt 0:00:04]} 28. Qd5 {[%emt 0:00:59]} Rd8 {[%emt 0:03:31]} 29. Rc1 {[%emt 0:05:45]} Qxd5 {[%emt 0:02:31]} 30. Bxd5 {[%emt 0:00:03]} Nb8 {[%emt 0:00:02]} 31. Rc5 {[%emt 0:03:10]} c6 {[%emt 0:01:22]} 32. Bc4 {[%emt 0:01:29]} Rd7 {[%emt 0:00:29]} 33. Kf1 {[%emt 0:04:41]} Kf8 {[%emt 0:00:03]} 34. Ke2 {[%emt 0:01:00]} f6 {[%emt 0:00:42]} 35. Bd3 {[%emt 0:03:45]} Ke7 {[%emt 0:00:28]} 36. Rc4 {[%emt 0:00:40]} a5 {[%emt 0:04:13]} 37. Ra4 {[%emt 0:01:54]} Rd5 {[%emt 0:00:06]} 38. Re4+ {[%emt 0:00:37]} Kd6 {[%emt 0:00:33]} 39. Ke3 {[%emt 0:01:58]} Nd7 {[%emt 0:01:18]} 40. Bc4 {[%emt 0:00:53]} Re5 {[%emt 0:01:00]} 41. Kd4 {[%emt 0:01:37]} f5 {[%emt 0:02:20]} 42. Rxe5 {[%emt 0:00:26]} Nxe5 {[%emt 0:00:14]} 43. Be2 {[%emt 0:00:06]} c5+ {[%emt 0:00:36]} 44. Ke3 {[%emt 0:00:19]} Nc6 {[%emt 0:00:38]} 45. Bc4 {[%emt 0:00:57]} Ne5 {[%emt 0:03:11]} 46. h3 {[%emt 0:00:37]} Nc6 {[%emt 0:01:09]} 47. Kf4 {[%emt 0:00:46]} Nd4 {[%emt 0:00:19]} 48. h4 {[%emt 0:01:24]} g6 {[%emt 0:00:36]} 49. Bf7 {[%emt 0:00:40]} Ne2+ {[%emt 0:00:53]} 50. Kf3 {[%emt 0:00:43]} Nd4+ {[%emt 0:01:02]} 51. Kf4 {[%emt 0:00:25]} Ne2+ {[%emt 0:05:27]} 52. Kf3 {[%emt 0:00:15]} Nd4+ {[%emt 0:06:44]} 53. Kf4 {[%emt 0:00:06]} Ne2+ {[%emt 0:00:02]} 54. Kf3 {[%emt 0:01:47]} 1/2-1/2

[Event "28th Bosnjaci Open 2024"]
[Site "Bosnjaci"]
[Date "2024.01.06"]
[Round "6.16"]
[White "Tomas, Ante"]
[Black "Saric, Kristina"]
[Result "1/2-1/2"]
[ECO "E04"]
[WhiteElo "2014"]
[BlackElo "2111"]
[Annotator "RC"]
[PlyCount "67"]
[EventDate "2024.01.02"]
[EventType "swiss"]
[EventCountry "CRO"]
[SourceTitle "playchess.com"]
[Source "ChessBase"]
[SourceQuality "1"]
[TimeControl "5400+30"]

1. Nf3 {[%emt 0:00:08]} Nf6 {[%emt 0:00:16]} 2. g3 {[%emt 0:00:21]} d5 {[%emt 0:00:25]} 3. Bg2 {[%emt 0:00:02]} c5 {[%emt 0:00:21]} 4. O-O {[%emt 0:00:12]} Nc6 {[%emt 0:00:31]} 5. d4 {[%emt 0:00:05]} e6 {[%emt 0:01:06]} 6. c4 {[%emt 0:00:06]} dxc4 {[%emt 0:02:50]} 7. dxc5 {[%emt 0:00:27]} Qxd1 {[%emt 0:02:49]} 8. Rxd1 {[%emt 0:00:01]} Bxc5 {[%emt 0:00:09]} 9. Nbd2 {[%emt 0:00:06]} O-O {[%emt 0:08:05]} 10. Nxc4 {[%emt 0:00:09]} Ne4 {[%emt 0:03:13]} 11. e3 {[%emt 0:05:40]} Rd8 {[%emt 0:08:07]} 12. Rxd8+ {[%emt 0:03:15]} Nxd8 {[%emt 0:00:01]} 13. Nfe5 {[%emt 0:00:26]} Nf6 {[%emt 0:05:45]} 14. Bd2 {[%emt 0:02:15]} Bd7 {[%emt 0:03:56]} 15. Rc1 {[%emt 0:14:08]} Rb8 {[%emt 0:03:16]} 16. Nxd7 {[%emt 0:10:33]} Nxd7 {[%emt 0:00:05]} 17. Ne5 {[%emt 0:01:24]} Nxe5 {[%emt 0:02:06]} 18. Rxc5 {[%emt 0:00:02]} Ndc6 {[%emt 0:01:10]} 19. Bc3 {[%emt 0:08:17]} Nd7 {[%emt 0:03:12]} 20. Rb5 {[%emt 0:06:42]} a6 {[%emt 0:01:24]} 21. Bxc6 {[%emt 0:01:15]} bxc6 {[%emt 0:01:36]} 22. Rxb8+ {[%emt 0:00:56]} Nxb8 {[%emt 0:00:01]} 23. Kf1 {[%emt 0:00:35]} Nd7 {[%emt 0:02:37]} 24. Ke2 {[%emt 0:00:31]} f6 {[%emt 0:02:18]} 25. Kd3 {[%emt 0:00:49]} Kf7 {[%emt 0:03:35]} 26. Kc4 {[%emt 0:00:58]} c5 {[%emt 0:00:42]} 27. b4 {[%emt 0:02:26]} cxb4 {[%emt 0:01:50]} 28. Kxb4 {[%emt 0:00:12]} e5 {[%emt 0:02:09]} 29. Ka5 {[%emt 0:00:49]} Nc5 {[%emt 0:00:20]} 30. Kb4 {[%emt 0:04:21]} Nb7 {[%emt 0:03:27]} 31. Kc4 {[%emt 0:01:26]} Ke6 {[%emt 0:00:16]} 32. Bb4 {[%emt 0:02:58]} h5 {[%emt 0:03:50]} 33. e4 {[%emt 0:12:52]} Nd6+ {[%emt 0:04:28]} 34. Bxd6 {[%emt 0:23:03]} 1/2-1/2

[Event "28th Bosnjaci Open 2024"]
[Site "Bosnjaci"]
[Date "2024.01.06"]
[Round "6.17"]
[White "Vujnovic, Patricija"]
[Black "Jovic, Stevan"]
[Result "1-0"]
[ECO "B19"]
[WhiteElo "2104"]
[BlackElo "1993"]
[Annotator "NA RC"]
[PlyCount "59"]
[EventDate "2024.01.02"]
[EventType "swiss"]
[EventCountry "CRO"]
[SourceTitle "playchess.com"]
[Source "ChessBase"]
[SourceQuality "1"]
[TimeControl "5400+30"]

1. d4 {[%emt 0:02:07]} c6 {[%emt 0:00:08]} 2. e4 {[%emt 0:02:53]} d5 {[%emt 0:00:07]} 3. Nc3 {[%emt 0:00:32]} dxe4 {[%emt 0:00:05]} 4. Nxe4 {[%emt 0:00:01]} Bf5 {[%emt 0:00:07]} 5. Ng3 {[%emt 0:00:06]} Bg6 {[%emt 0:00:04]} 6. h4 {[%emt 0:00:21]} h6 {[%emt 0:00:04]} 7. h5 {[%emt 0:00:05]} Bh7 {[%emt 0:00:05]} 8. Nf3 {[%emt 0:00:15]} Nf6 {[%emt 0:00:05]} 9. Bd3 {[%emt 0:00:30]} Bxd3 {[%emt 0:00:05]} 10. Qxd3 {[%emt 0:00:02]} e6 {[%emt 0:00:07]} 11. Bd2 {[%emt 0:01:00]} c5 {[%emt 0:00:04]} 12. Ne4 {[%emt 0:14:45]} Nxe4 {[%emt 0:01:30]} 13. Qxe4 {[%emt 0:00:01]} Nc6 {[%emt 0:00:09]} 14. dxc5 {[%emt 0:03:52]} Bxc5 {[%emt 0:00:28]} 15. O-O-O {[%emt 0:01:03]} Qe7 {[%emt 0:08:18]} 16. Ne5 {[%emt 0:12:56]} Nxe5 {[%emt 0:10:30]} 17. Qxe5 {[%emt 0:04:15]} O-O {[%emt 0:00:14]} 18. Qg3 {[%emt 0:10:58]} Kh8 {[%emt 0:00:18]} 19. Bc3 {[%emt 0:00:57]} f6 {[%emt 0:00:16]} 20. Rd3 {[%emt 0:06:18]} f5 {[%emt 0:00:31]} 21. Rhd1 {[%emt 0:02:34]} Rf7 {[%emt 0:00:26]} 22. f4 {[%emt 0:02:44]} Qc7 {[%emt 0:00:35]} 23. Be5 {[%emt 0:01:35]} Qe7 {[%emt 0:00:30]} 24. Qg6 {[%emt 0:02:33]} Kg8 {[%emt 0:00:10]} 25. Kb1 {[%emt 0:05:45]} b5 {[%emt 0:00:28]} 26. a3 {[%emt 0:02:24]} a5 {[%emt 0:00:08]} 27. Rd7 {[%emt 0:01:37]} Qf8 {[%emt 0:01:00]} 28. Qxe6 {[%emt 0:01:19]} b4 {[%emt 0:01:08]} 29. Rxf7 {[%emt 0:04:38]} Qxf7 {[%emt 0:00:06]} 30. Qc6 {[%emt 0:01:11]} 1-0

[Event "28th Bosnjaci Open 2024"]
[Site "Bosnjaci"]
[Date "2024.01.06"]
[Round "6.18"]
[White "Grgantov, Marin"]
[Black "Sundac, Ivano"]
[Result "1/2-1/2"]
[ECO "B28"]
[WhiteElo "1973"]
[BlackElo "2070"]
[Annotator "NA RC"]
[PlyCount "28"]
[EventDate "2024.01.02"]
[EventType "swiss"]
[EventCountry "CRO"]
[SourceTitle "playchess.com"]
[Source "ChessBase"]
[SourceQuality "1"]
[TimeControl "5400+30"]

1. e4 {[%emt 0:00:03]} c5 {[%emt 0:00:03]} 2. Nf3 {[%emt 0:00:13]} a6 {[%emt 0:00:33]} 3. c3 {[%emt 0:00:23]} d5 {[%emt 0:00:06]} 4. exd5 {[%emt 0:00:13]} Qxd5 {[%emt 0:00:05]} 5. d4 {[%emt 0:00:14]} Nf6 {[%emt 0:00:56]} 6. c4 {[%emt 0:10:29]} Qd8 {[%emt 0:00:27]} 7. Nc3 {[%emt 0:01:48]} cxd4 {[%emt 0:00:32]} 8. Qxd4 {[%emt 0:01:41]} Qxd4 {[%emt 0:01:14]} 9. Nxd4 {[%emt 0:00:02]} e5 {[%emt 0:00:57]} 10. Nb3 {[%emt 0:06:00]} Nc6 {[%emt 0:03:01]} 11. Be2 {[%emt 0:03:26]} Be6 {[%emt 0:02:59]} 12. O-O {[%emt 0:01:21]} Be7 {[%emt 0:05:52]} 13. Be3 {[%emt 0:00:30]} O-O {[%emt 0:00:59]} 14. Rfd1 {[%emt 0:10:47]} Rfd8 {[%emt 1:19:46]} 1/2-1/2

[Event "28th Bosnjaci Open 2024"]
[Site "Bosnjaci"]
[Date "2024.01.06"]
[Round "6.19"]
[White "Biti, Ozren"]
[Black "Alfirevic, Duje"]
[Result "1-0"]
[ECO "C56"]
[WhiteElo "2308"]
[BlackElo "2000"]
[Annotator "RC"]
[PlyCount "79"]
[EventDate "2024.01.02"]
[EventType "swiss"]
[EventCountry "CRO"]
[SourceTitle "playchess.com"]
[Source "ChessBase"]
[SourceQuality "1"]
[TimeControl "5400+30"]

1. e4 {[%emt 0:00:01]} e5 {[%emt 0:00:14]} 2. Nf3 {[%emt 0:00:08]} Nc6 {[%emt 0:00:08]} 3. Bc4 {[%emt 0:00:05]} Nf6 {[%emt 0:00:08]} 4. d4 {[%emt 0:00:48]} exd4 {[%emt 0:00:39]} 5. Ng5 {[%emt 0:00:14]} d5 {[%emt 0:22:04]} 6. exd5 {[%emt 0:00:27]} Qe7+ {[%emt 0:13:29]} 7. Kf1 {[%emt 0:00:54]} Ne5 {[%emt 0:08:07]} 8. Qxd4 {[%emt 0:02:50]} h6 {[%emt 0:06:58]} 9. Ne4 {[%emt 0:10:24]} Nxc4 {[%emt 0:01:35]} 10. Nxf6+ {[%emt 0:01:22]} Qxf6 {[%emt 0:01:30]} 11. Qxc4 {[%emt 0:00:05]} Bd6 {[%emt 0:03:33]} 12. Nc3 {[%emt 0:02:41]} O-O {[%emt 0:05:52]} 13. Ne4 {[%emt 0:08:02]} Qg6 {[%emt 0:00:24]} 14. h4 {[%emt 0:11:22]} Bf5 {[%emt 0:13:21]} 15. h5 {[%emt 0:01:18]} Qh7 {[%emt 0:00:17]} 16. Nxd6 {[%emt 0:02:50]} cxd6 {[%emt 0:04:18]} 17. Qd4 {[%emt 0:05:05]} Bxc2 {[%emt 0:00:36]} 18. Kg1 {[%emt 0:03:57]} Qe4 {[%emt 0:03:35]} 19. Rh4 {[%emt 0:03:52]} Qe1+ {[%emt 0:02:13]} 20. Kh2 {[%emt 0:00:05]} Qe5+ {[%emt 0:00:06]} 21. Qxe5 {[%emt 0:05:24]} dxe5 {[%emt 0:00:27]} 22. Be3 {[%emt 0:05:27]} Rfd8 {[%emt 0:03:05]} 23. Rc1 {[%emt 0:05:42]} Rac8 {[%emt 0:00:48]} 24. Bxa7 {[%emt 0:02:25]} Rxd5 {[%emt 0:01:12]} 25. Be3 {[%emt 0:04:26]} Rc6 {[%emt 0:01:03]} 26. Rb4 {[%emt 0:02:59]} Rd7 {[%emt 0:00:37]} 27. Rb5 {[%emt 0:03:56]} f6 {[%emt 0:00:06]} 28. Ra5 {[%emt 0:00:49]} Kf7 {[%emt 0:03:10]} 29. b4 {[%emt 0:04:54]} Be4 {[%emt 0:01:32]} 30. Rxc6 {[%emt 0:03:59]} Bxc6 {[%emt 0:00:04]} 31. b5 {[%emt 0:01:18]} Bd5 {[%emt 0:00:20]} 32. a4 {[%emt 0:01:20]} Rd8 {[%emt 0:03:21]} 33. Ra7 {[%emt 0:00:37]} Ke6 {[%emt 0:00:58]} 34. a5 {[%emt 0:01:49]} Rd7 {[%emt 0:00:47]} 35. Ra8 {[%emt 0:01:13]} Bc4 {[%emt 0:00:48]} 36. a6 {[%emt 0:00:59]} bxa6 {[%emt 0:00:31]} 37. bxa6 {[%emt 0:00:26]} Bd5 {[%emt 0:00:31]} 38. Rc8 {[%emt 0:00:44]} Ke7 {[%emt 0:00:30]} 39. Bc5+ {[%emt 0:00:54]} Kf7 {[%emt 0:00:29]} 40. a7 {[%emt 0:00:37]} 1-0

[Event "28th Bosnjaci Open 2024"]
[Site "Bosnjaci"]
[Date "2024.01.06"]
[Round "6.20"]
[White "Kejzar, Petra"]
[Black "Bobanac, Miro"]
[Result "1/2-1/2"]
[ECO "A34"]
[WhiteElo "2025"]
[BlackElo "2238"]
[Annotator "RC"]
[PlyCount "94"]
[EventDate "2024.01.02"]
[EventType "swiss"]
[EventCountry "CRO"]
[SourceTitle "playchess.com"]
[Source "ChessBase"]
[SourceQuality "1"]
[TimeControl "5400+30"]

1. d4 {[%emt 0:00:04]} Nf6 {[%emt 0:01:26]} 2. c4 {[%emt 0:00:06]} e6 {[%emt 0:00:25]} 3. g3 {[%emt 0:00:08]} c5 {[%emt 0:01:58]} 4. Nf3 {[%emt 0:01:48]} d5 {[%emt 0:02:51]} 5. cxd5 {[%emt 0:02:11]} Nxd5 {[%emt 0:01:07]} 6. Bg2 {[%emt 0:00:57]} Nc6 {[%emt 0:00:50]} 7. O-O {[%emt 0:01:21]} Be7 {[%emt 0:00:49]} 8. Nc3 {[%emt 0:02:18]} Nxc3 {[%emt 0:05:11]} 9. bxc3 {[%emt 0:00:57]} O-O {[%emt 0:00:16]} 10. Rb1 {[%emt 0:09:47]} Qa5 {[%emt 0:07:07]} 11. Qc2 {[%emt 0:00:35]} Bf6 {[%emt 0:04:14]} 12. Bg5 {[%emt 0:05:54]} Bxg5 {[%emt 0:07:17]} 13. Nxg5 {[%emt 0:00:01]} g6 {[%emt 0:00:14]} 14. d5 {[%emt 0:14:03]} exd5 {[%emt 0:02:22]} 15. Bxd5 {[%emt 0:00:06]} Qd8 {[%emt 0:01:23]} 16. Ne4 {[%emt 0:03:35]} Bf5 {[%emt 0:04:06]} 17. Qb2 {[%emt 0:11:40]} Bxe4 {[%emt 0:10:37]} 18. Bxe4 {[%emt 0:00:06]} Rb8 {[%emt 0:01:19]} 19. Rfd1 {[%emt 0:04:32]} Qe7 {[%emt 0:07:11]} 20. Bd5 {[%emt 0:01:50]} Nd8 {[%emt 0:09:20]} 21. Qd2 {[%emt 0:01:38]} b6 {[%emt 0:00:31]} 22. h4 {[%emt 0:01:36]} Re8 {[%emt 0:02:00]} 23. e4 {[%emt 0:07:05]} Ne6 {[%emt 0:00:27]} 24. Kg2 {[%emt 0:02:44]} Nc7 {[%emt 0:03:40]} 25. Re1 {[%emt 0:01:40]} Rbd8 {[%emt 0:02:05]} 26. h5 {[%emt 0:01:51]} Qd6 {[%emt 0:07:11]} 27. c4 {[%emt 0:01:25]} Qe5 {[%emt 0:02:02]} 28. hxg6 {[%emt 0:01:46]} hxg6 {[%emt 0:00:12]} 29. Qh6 {[%emt 0:04:10]} Nxd5 {[%emt 0:02:48]} 30. cxd5 {[%emt 0:01:01]} c4 {[%emt 0:01:46]} 31. Re3 {[%emt 0:02:06]} c3 {[%emt 0:01:30]} 32. Rh1 {[%emt 0:00:55]} b5 {[%emt 0:02:32]} 33. Rf3 {[%emt 0:01:54]} Qg7 {[%emt 0:00:20]} 34. Qxg7+ {[%emt 0:05:03]} Kxg7 {[%emt 0:00:10]} 35. Rxc3 {[%emt 0:00:03]} Rxe4 {[%emt 0:00:11]} 36. Ra3 {[%emt 0:03:13]} Rxd5 {[%emt 0:00:55]} 37. Rxa7 {[%emt 0:00:10]} Rd2 {[%emt 0:00:44]} 38. Rh4 {[%emt 0:01:25]} Rxh4 {[%emt 0:00:40]} 39. gxh4 {[%emt 0:00:02]} Rd5 {[%emt 0:03:07]} 40. Rb7 {[%emt 0:00:35]} Rf5 {[%emt 0:00:19]} 41. Kg3 {[%emt 0:00:19]} Kf6 {[%emt 0:00:13]} 42. a4 {[%emt 0:00:45]} bxa4 {[%emt 0:00:09]} 43. Ra7 {[%emt 0:00:07]} Kg7 {[%emt 0:00:20]} 44. Rxa4 {[%emt 0:00:16]} Kh6 {[%emt 0:00:14]} 45. Rb4 {[%emt 0:00:34]} Rd5 {[%emt 0:00:37]} 46. f3 {[%emt 0:00:45]} Rc5 {[%emt 0:00:27]} 47. Ra4 {[%emt 0:00:31]} Rb5 {[%emt 0:00:14]} 1/2-1/2

[Event "28th Bosnjaci Open 2024"]
[Site "Bosnjaci"]
[Date "2024.01.07"]
[Round "7.1"]
[White "Saric, Ante"]
[Black "Zaja, Ivan"]
[Result "1/2-1/2"]
[ECO "E43"]
[WhiteElo "2508"]
[BlackElo "2419"]
[Annotator "TA"]
[PlyCount "41"]
[EventDate "2024.01.02"]
[EventType "swiss"]
[EventCountry "CRO"]
[SourceTitle "playchess.com"]
[Source "ChessBase"]
[SourceQuality "1"]
[TimeControl "5400+30"]

{[%evp 22,23,14,2]} 1. d4 {[%emt 0:00:02]} e6 {[%emt 0:00:08]} 2. c4 {[%emt 0:00:04]} b6 {[%emt 0:00:06]} 3. Nf3 {[%emt 0:00:08]} Nf6 {[%emt 0:00:04]} 4. Nc3 {[%emt 0:00:06]} Bb4 {[%emt 0:00:08]} 5. e3 {[%emt 0:00:07]} Bb7 {[%emt 0:00:05]} 6. Bd3 {[%emt 0:00:04]} Ne4 {[%emt 0:00:08]} 7. Qc2 {[%emt 0:00:08]} Bxc3+ {[%emt 0:00:07]} 8. bxc3 {[%emt 0:00:04]} f5 {[%emt 0:00:05]} 9. O-O {[%emt 0:00:05]} O-O {[%emt 0:00:05]} 10. Nd2 {[%emt 0:00:03]} Qh4 {[%emt 0:00:07]} 11. f3 {[%emt 0:00:09]} Nxd2 {[%emt 0:00:03]} 12. Bxd2 {[%emt 0:00:04] [#]} {Predecessor:} d6 $146 {E43: Nimzo-Indian: Rubinstein: 4...b6.} 13. a4 Nc6 14. g3 Qh5 15. e4 Na5 16. Rae1 fxe4 17. fxe4 Ba6 18. Bf4 Bxc4 19. Bxc4 Nxc4 20. Qb3 d5 21. Qb5 {½-½ Li,C (2746)-Anand,V (2776) Moscow Tal Memorial 10th 2016 (3)} 1/2-1/2

[Event "28th Bosnjaci Open 2024"]
[Site "Bosnjaci"]
[Date "2024.01.07"]
[Round "7.3"]
[White "Plenkovic, Zdenko"]
[Black "Sajin, Mirko"]
[Result "1-0"]
[ECO "A16"]
[WhiteElo "2335"]
[BlackElo "2299"]
[Annotator "RC"]
[PlyCount "75"]
[EventDate "2024.01.02"]
[EventType "swiss"]
[EventCountry "CRO"]
[SourceTitle "playchess.com"]
[Source "ChessBase"]
[SourceQuality "1"]
[TimeControl "5400+30"]

1. g3 {[%emt 0:00:01]} Nf6 {[%emt 0:00:35]} 2. Bg2 {[%emt 0:00:04]} d5 {[%emt 0:00:49]} 3. Nf3 {[%emt 0:00:33]} g6 {[%emt 0:00:24]} 4. O-O {[%emt 0:00:16]} Bg7 {[%emt 0:00:12]} 5. c4 {[%emt 0:02:53]} O-O {[%emt 0:02:02]} 6. cxd5 {[%emt 0:00:15]} Nxd5 {[%emt 0:00:17]} 7. Nc3 {[%emt 1:29:58]} Nb6 {[%emt 0:03:38]} 8. d3 {[%emt 0:00:00]} Nc6 {[%emt 0:07:51]} 9. Be3 {[%emt 0:00:00]} Bf5 {[%emt 0:15:02]} 10. Qd2 {[%emt 0:00:00]} e5 {[%emt 0:01:42]} 11. Rfc1 {[%emt 0:00:00]} Ne7 {[%emt 0:08:24]} 12. Bh6 {[%emt 0:00:00]} f6 {[%emt 0:01:09]} 13. Bxg7 {[%emt 0:00:00]} Kxg7 {[%emt 0:00:05]} 14. d4 {[%emt 0:00:00]} Nc6 {[%emt 0:12:13]} 15. dxe5 {[%emt 0:00:00]} fxe5 {[%emt 0:00:30]} 16. Qxd8 {[%emt 0:00:00]} Raxd8 {[%emt 0:00:14]} 17. Ng5 {[%emt 0:00:00]} Rd2 {[%emt 0:07:19]} 18. Bxc6 {[%emt 0:00:00]} bxc6 {[%emt 0:00:11]} 19. Nf3 {[%emt 0:00:00]} Rxb2 {[%emt 0:02:38]} 20. Nxe5 {[%emt 0:00:00]} c5 {[%emt 0:05:20]} 21. f4 {[%emt 0:00:00]} Rd8 {[%emt 0:03:00]} 22. Kf2 {[%emt 0:00:00]} Rdd2 {[%emt 0:04:11]} 23. Nf3 {[%emt 0:00:00]} Rdc2 {[%emt 0:02:10]} 24. Ne1 {[%emt 0:00:00]} Rd2 {[%emt 0:01:24]} 25. Rd1 {[%emt 0:00:00]} Nc4 {[%emt 0:03:11]} 26. Rxd2 {[%emt 0:00:00]} Nxd2 {[%emt 0:01:04]} 27. Nd1 {[%emt 0:00:00]} Rb6 {[%emt 0:02:10]} 28. Rc1 {[%emt 0:00:00]} Ne4+ {[%emt 0:02:05]} 29. Kf3 {[%emt 0:00:00]} Re6 {[%emt 0:02:06]} 30. Nc3 {[%emt 0:00:00]} Nf6 {[%emt 0:02:40]} 31. Nd3 {[%emt 0:00:00]} Ng4 {[%emt 0:01:59]} 32. e4 {[%emt 0:00:00]} h5 {[%emt 0:00:33]} 33. h3 {[%emt 0:00:00]} Rd6 {[%emt 0:00:47]} 34. hxg4 {[%emt 0:00:00]} Rxd3+ {[%emt 0:00:13]} 35. Ke2 {[%emt 0:00:00]} Rxg3 {[%emt 0:00:23]} 36. gxf5 {[%emt 0:00:00]} gxf5 {[%emt 0:00:06]} 37. e5 {[%emt 0:00:00]} h4 {[%emt 0:00:07]} 38. Kf2 {[%emt 0:00:00]} 1-0